{"text_format":"3","workbook":"xlsx","n_sheets":1,"sheets":["Lista de Compras"],"not_rendered":{"images":1,"defined_names":3},"read":"whole","date_system":"1900"}

{"sheet":"Lista de Compras","index":0,"n_rows":31,"n_cols":8,"rows_kept":31}
[null,"Lista de Compras"]
[null,"DATA"]
[null,"Comprado?","Item","Categoria","Quantidade","Preço","Preço Total","Marca/Comentários"]
[null,null,"Laranjas","Produtos",null,null,{"$f":"IFERROR(SUM(GroceryList[[#This Row],[Quantidade]]*GroceryList[[#This Row],[Preço]]), \"\")","v":{"v":0,"d":"R$ 0.00"}}]
[null,null,"Maçãs","Produtos",null,null,{"$f":"IFERROR(SUM(GroceryList[[#This Row],[Quantidade]]*GroceryList[[#This Row],[Preço]]), \"\")","v":{"v":0,"d":"R$ 0.00"}}]
[null,null,"Bananas","Produtos",null,null,{"$f":"IFERROR(SUM(GroceryList[[#This Row],[Quantidade]]*GroceryList[[#This Row],[Preço]]), \"\")","v":{"v":0,"d":"R$ 0.00"}}]
[null,null,"Alface","Produtos",null,null,{"$f":"IFERROR(SUM(GroceryList[[#This Row],[Quantidade]]*GroceryList[[#This Row],[Preço]]), \"\")","v":{"v":0,"d":"R$ 0.00"}}]
[null,null,"Tomates","Produtos",null,null,{"$f":"IFERROR(SUM(GroceryList[[#This Row],[Quantidade]]*GroceryList[[#This Row],[Preço]]), \"\")","v":{"v":0,"d":"R$ 0.00"}},"  "]
[null,null,"Leite ","Laticínios",null,null,{"$f":"IFERROR(SUM(GroceryList[[#This Row],[Quantidade]]*GroceryList[[#This Row],[Preço]]), \"\")","v":{"v":0,"d":"R$ 0.00"}}]
[null,null,"Queijo","Laticínios",null,null,{"$f":"IFERROR(SUM(GroceryList[[#This Row],[Quantidade]]*GroceryList[[#This Row],[Preço]]), \"\")","v":{"v":0,"d":"R$ 0.00"}}]
[null,null,"Ovos","Laticínios",null,null,{"$f":"IFERROR(SUM(GroceryList[[#This Row],[Quantidade]]*GroceryList[[#This Row],[Preço]]), \"\")","v":{"v":0,"d":"R$ 0.00"}}]
[null,null,"Queijo cottage","Laticínios",null,null,{"$f":"IFERROR(SUM(GroceryList[[#This Row],[Quantidade]]*GroceryList[[#This Row],[Preço]]), \"\")","v":{"v":0,"d":"R$ 0.00"}}]
[null,null,"Carne","Carne",null,null,{"$f":"IFERROR(SUM(GroceryList[[#This Row],[Quantidade]]*GroceryList[[#This Row],[Preço]]), \"\")","v":{"v":0,"d":"R$ 0.00"}}]
[null,null,"Frango","Carne",null,null,{"$f":"IFERROR(SUM(GroceryList[[#This Row],[Quantidade]]*GroceryList[[#This Row],[Preço]]), \"\")","v":{"v":0,"d":"R$ 0.00"}}]
[null,null,"Presunto","Carne",null,null,{"$f":"IFERROR(SUM(GroceryList[[#This Row],[Quantidade]]*GroceryList[[#This Row],[Preço]]), \"\")","v":{"v":0,"d":"R$ 0.00"}}]
[null,null,"Suco","Bebidas",null,null,{"$f":"IFERROR(SUM(GroceryList[[#This Row],[Quantidade]]*GroceryList[[#This Row],[Preço]]), \"\")","v":{"v":0,"d":"R$ 0.00"}}]
[null,null,"Café","Bebidas",null,null,{"$f":"IFERROR(SUM(GroceryList[[#This Row],[Quantidade]]*GroceryList[[#This Row],[Preço]]), \"\")","v":{"v":0,"d":"R$ 0.00"}}]
[null,null,"Chá","Bebidas",null,null,{"$f":"IFERROR(SUM(GroceryList[[#This Row],[Quantidade]]*GroceryList[[#This Row],[Preço]]), \"\")","v":{"v":0,"d":"R$ 0.00"}}]
[null,null,"Água","Bebidas",null,null,{"$f":"IFERROR(SUM(GroceryList[[#This Row],[Quantidade]]*GroceryList[[#This Row],[Preço]]), \"\")","v":{"v":0,"d":"R$ 0.00"}}]
[null,null,"Macarrão","Massa",null,null,{"$f":"IFERROR(SUM(GroceryList[[#This Row],[Quantidade]]*GroceryList[[#This Row],[Preço]]), \"\")","v":{"v":0,"d":"R$ 0.00"}}]
[null,null,"Arroz","Massa",null,null,{"$f":"IFERROR(SUM(GroceryList[[#This Row],[Quantidade]]*GroceryList[[#This Row],[Preço]]), \"\")","v":{"v":0,"d":"R$ 0.00"}}]
[null,null,"Enlatados","Sopa",null,null,{"$f":"IFERROR(SUM(GroceryList[[#This Row],[Quantidade]]*GroceryList[[#This Row],[Preço]]), \"\")","v":{"v":0,"d":"R$ 0.00"}}]
[null,null,"Temperos desidratados","Sopa",null,null,{"$f":"IFERROR(SUM(GroceryList[[#This Row],[Quantidade]]*GroceryList[[#This Row],[Preço]]), \"\")","v":{"v":0,"d":"R$ 0.00"}}]
[null,null,"Pão","Confeitaria",null,null,{"$f":"IFERROR(SUM(GroceryList[[#This Row],[Quantidade]]*GroceryList[[#This Row],[Preço]]), \"\")","v":{"v":0,"d":"R$ 0.00"}}]
[null,null,"Batatas fritas","Petiscos",null,null,{"$f":"IFERROR(SUM(GroceryList[[#This Row],[Quantidade]]*GroceryList[[#This Row],[Preço]]), \"\")","v":{"v":0,"d":"R$ 0.00"}}]
[null,null,"Pretzels","Petiscos",null,null,{"$f":"IFERROR(SUM(GroceryList[[#This Row],[Quantidade]]*GroceryList[[#This Row],[Preço]]), \"\")","v":{"v":0,"d":"R$ 0.00"}}]
[null,null,"Sorvete","Petiscos",null,null,{"$f":"IFERROR(SUM(GroceryList[[#This Row],[Quantidade]]*GroceryList[[#This Row],[Preço]]), \"\")","v":{"v":0,"d":"R$ 0.00"}}]
[null,null,"Biscoitos","Petiscos",null,null,{"$f":"IFERROR(SUM(GroceryList[[#This Row],[Quantidade]]*GroceryList[[#This Row],[Preço]]), \"\")","v":{"v":0,"d":"R$ 0.00"}}]
[null,null,"Pratos de papel","Materiais",null,null,{"$f":"IFERROR(SUM(GroceryList[[#This Row],[Quantidade]]*GroceryList[[#This Row],[Preço]]), \"\")","v":{"v":0,"d":"R$ 0.00"}}]
[null,null,"Guardanapos","Materiais",null,null,{"$f":"IFERROR(SUM(GroceryList[[#This Row],[Quantidade]]*GroceryList[[#This Row],[Preço]]), \"\")","v":{"v":0,"d":"R$ 0.00"}}]
[{"$nulls":6},{"$f":"SUBTOTAL(109,GroceryList[Preço Total])","v":{"v":0,"d":"R$ 0.00"}}]